fUST/lending_fUST_20240115
["ID","MTS","AMOUNT","RATE_DAILY","PERIOD"]
[311660643,1705290642346,-500.0,0.00028767,2]
[311660644,1705290642356,-996.59,0.00028767,2]
[311660645,1705290642365,-686.93,0.00028767,2]
[311660646,1705290642375,-500.0,0.00028767,2]
[311660647,1705290642385,-500.0,0.00028767,2]
[311660648,1705290642394,-500.0,0.00028767,2]
[311660649,1705290642405,-630.0683856,0.00028767,2]
[311660650,1705290642415,-737.22,0.00028767,2]
[311660651,1705290642425,-826.87,0.00028767,2]
[311660652,1705290642435,-500.0,0.00028767,2]
[311660653,1705290642445,-885.55,0.00028767,2]
[311660654,1705290642454,-1762.69,0.00028767,2]
[311660655,1705290642464,-500.0,0.00028767,2]
[311660656,1705290642474,-641.5,0.00028767,2]
[311660657,1705290642484,-1894.45,0.00028767,2]
[311660658,1705290642494,-583.54,0.00028767,2]
[311660659,1705290642505,-155.0,0.00028767,2]
[311660660,1705290642514,-632.48600144,0.00028839,2]
[311660661,1705290642524,-6244.48628225,0.00028937,2]
[311660662,1705290642534,-186.2756002,0.00029,2]
[311660663,1705290642543,-2316.63489669,0.00029,2]
[311660664,1705290642553,-238.525294,0.00029,2]
[311660665,1705290642685,-1466.46,0.00029037,2]
[311660666,1705290642696,-500.0,0.00029037,2]
[311660667,1705290642705,-500.0,0.00029037,2]
[311660668,1705290642714,-500.0,0.00029037,2]
[311660669,1705290642724,-857.62,0.00029037,2]
[311660670,1705290642733,-500.0,0.00029037,2]
[311660671,1705290642742,-500.0,0.00029037,2]
[311660672,1705290642752,-512.97,0.00029037,2]
[311660673,1705290642761,-8937.2,0.00029037,2]
[311660674,1705290642771,-500.0,0.00029037,2]
[311660675,1705290642781,-3300.14,0.00029037,2]
[311660676,1705290642790,-15225.0,0.00029037,2]
[311660677,1705290642800,-500.0,0.00029037,2]
[311660678,1705290642809,-1221.63,0.00029037,2]
[311660679,1705290642818,-845.79,0.00029038,2]
[311660680,1705290642828,-4603.41,0.00029038,2]
[311660681,1705290642837,-500.0,0.00029038,2]
[311660682,1705290642846,-4682.2,0.00029038,2]
[311660683,1705290642855,-500.0,0.00029038,2]
[311660684,1705290642865,-2506.5,0.00029038,2]
[311660685,1705290642874,-3844.9,0.00029039,2]
[311660686,1705290642883,-600.0,0.00029039,2]
[311660687,1705290642892,-1014.27,0.00029039,2]
[311660688,1705290642902,-1813.57,0.00029039,2]
[311660689,1705290642911,-500.0,0.00029039,2]
[311660690,1705290642920,-500.0,0.00029041,2]
[311660691,1705290642930,-500.0,0.00029041,2]
[311660692,1705290642940,-500.0,0.00029041,2]
[311660693,1705290642949,-500.0,0.00029041,2]
[311660694,1705290642958,-500.0,0.00029041,2]
[311660695,1705290642967,-500.0,0.00029041,2]
[311660696,1705290642976,-500.0,0.00029041,2]
[311660698,1705290642985,-657.97,0.00029041,2]
[311660699,1705290642995,-500.0,0.00029041,2]
[311660700,1705290643004,-500.0,0.00029041,2]
[311660701,1705290643013,-500.0,0.00029041,2]
[311660702,1705290643022,-371.67830078,0.00029041,2]
[311660703,1705290643031,-500.0,0.00029041,2]
[311660704,1705290643041,-996.59,0.00029041,2]
[311660705,1705290643051,-686.93,0.00029041,2]
[311660706,1705290643059,-500.0,0.00029041,2]
[311660707,1705290643069,-500.0,0.00029041,2]
[311660708,1705290643079,-500.0,0.00029041,2]
[311660710,1705290643088,-737.22,0.00029041,2]
[311660711,1705290643097,-826.87,0.00029041,2]
[311660714,1705290643107,-500.0,0.00029041,2]
[311660715,1705290643117,-885.55,0.00029041,2]
[311660717,1705290643126,-1762.69,0.00029041,2]
[311660719,1705290643135,-500.0,0.00029041,2]
[311660720,1705290643144,-641.5,0.00029041,2]
[311660722,1705290643155,-1894.45,0.00029041,2]
[311660723,1705290643164,-583.54,0.00029041,2]
[311660724,1705290643174,-153.0,0.00029041,2]
[311660725,1705290643183,-308.490721,0.00029041,2]
[311660726,1705290643192,-153.0,0.00029041,2]
[311660727,1705290643202,-2046.884197,0.000291,2]
[311660728,1705290643213,-154.9562086,0.00029121,2]
[311660730,1705290643222,-150.0,0.00029135,2]
[311660731,1705290643231,-500.0,0.00029136,7]
[311660732,1705290643240,-500.0,0.00029136,7]
[311660733,1705290643249,-500.0,0.00029136,7]
[311660734,1705290643258,-522.24,0.00029136,7]
[311660736,1705290643268,-1466.46,0.00029311,2]
[311660737,1705290643277,-500.0,0.00029311,2]
[311660739,1705290643286,-500.0,0.00029311,2]
[311660741,1705290643295,-350.86707901,0.00029311,2]
[311660742,1705290643304,-857.62,0.00029311,2]
[311660743,1705290643313,-500.0,0.00029311,2]
[311660744,1705290643322,-504.15428497,0.00029311,2]
[311660745,1705290643334,-512.97,0.00029311,2]
[311660746,1705290643344,-8937.2,0.00029311,2]
[311660747,1705290643353,-499.92863546,0.00029311,2]
[311660748,1705290643363,-3300.14,0.00029311,2]
[311660749,1705290643372,-15225.0,0.00029311,2]
[311660750,1705290643381,-1221.63,0.00029311,2]
[311660751,1705290643390,-845.79,0.00029312,2]
[311660752,1705290643400,-4603.41,0.00029312,2]
[311660753,1705290643409,-500.0,0.00029312,2]
[311660754,1705290643418,-4682.2,0.00029312,2]
[311660755,1705290643427,-500.0,0.00029312,2]
[311660756,1705290643436,-2506.5,0.00029312,2]
[311660757,1705290643445,-3844.9,0.00029313,2]
[311660758,1705290643454,-600.0,0.00029313,2]
[311660759,1705290643463,-1014.27,0.00029313,2]
[311660760,1705290643472,-1813.57,0.00029313,2]
[311660761,1705290643482,-500.0,0.00029313,2]
[311660762,1705290643491,-500.0,0.00029315,2]
[311660764,1705290643500,-500.0,0.00029315,2]
[311660766,1705290643509,-500.0,0.00029315,2]
[311660768,1705290643518,-500.0,0.00029315,2]
[311660770,1705290643527,-500.0,0.00029315,2]
[311660772,1705290643537,-500.0,0.00029315,2]
[311660774,1705290643546,-500.0,0.00029315,2]
[311660776,1705290643555,-657.97,0.00029315,2]
[311660778,1705290643564,-500.0,0.00029315,2]
[311660780,1705290643573,-500.0,0.00029315,2]
[311660782,1705290643584,-500.0,0.00029315,2]
[311660784,1705290643593,-500.0,0.00029315,2]
[311660786,1705290643602,-996.59,0.00029315,2]
[311660788,1705290643612,-686.93,0.00029315,2]
[311660790,1705290643621,-500.0,0.00029315,2]
[311660792,1705290643630,-500.0,0.00029315,2]
[311660794,1705290643639,-500.0,0.00029315,2]
[311660796,1705290643648,-737.22,0.00029315,2]
[311660798,1705290643657,-826.87,0.00029315,2]
[311660800,1705290643666,-500.0,0.00029315,2]
[311660802,1705290643675,-885.55,0.00029315,2]
[311660804,1705290643684,-1762.69,0.00029315,2]
[311660806,1705290643693,-500.0,0.00029315,2]
[311660808,1705290643702,-641.5,0.00029315,2]
[311660810,1705290643711,-1894.45,0.00029315,2]
[311660812,1705290643720,-583.54,0.00029315,2]
[311660814,1705290643729,-153.0,0.00029315,2]
[311660816,1705290643738,-227.03644445,0.00029351,2]
[311660818,1705290643748,-1230.36531557,0.00029351,2]
[311660820,1705290643757,-153.890699,0.00029571,2]
[311660822,1705290643766,-1466.46,0.00029585,2]
[311660824,1705290643776,-500.0,0.00029585,2]
[311660826,1705290643785,-500.0,0.00029585,2]
[311660828,1705290643794,-857.62,0.00029585,2]
[311660830,1705290643803,-500.0,0.00029585,2]
[311660832,1705290643813,-512.97,0.00029585,2]
[311660834,1705290643822,-3362.43134571,0.00029585,2]
[311660853,1705290644002,-1062.55,0.00027945,2]
[311660855,1705290644011,-1062.55,0.00028219,2]
[311660857,1705290644020,-1062.55,0.00028493,2]
[311660859,1705290644029,-250.48130136,0.00028767,2]
[311660880,1705290644220,-812.06869864,0.00028767,2]
[311660882,1705290644230,-861.358114,0.00029041,2]
[311660895,1705290646420,-500.0,0.00027667,2]
[311660897,1705290646429,-500.0,0.00027941,2]
[311660899,1705290646438,-500.0,0.00028215,2]
[311660901,1705290646448,-201.191886,0.00029041,2]
[311660903,1705290646457,-1062.55,0.00029315,2]
[311660905,1705290646466,-5574.76865429,0.00029585,2]
[311660907,1705290646475,-3300.14,0.00029585,2]
[311660909,1705290646484,-15225.0,0.00029585,2]
[311660911,1705290646494,-1221.63,0.00029585,2]
[311660913,1705290646503,-845.79,0.00029586,2]
[311660915,1705290646512,-4603.41,0.00029586,2]
[311660925,1705290646521,-330.8835941,0.00029586,2]
[311660927,1705290646610,-4682.2,0.00029586,2]
[311660929,1705290646619,-500.0,0.00029586,2]
[311660931,1705290646630,-2506.5,0.00029586,2]
[311660932,1705290646639,-600.0,0.00029587,2]
[311660933,1705290646648,-1014.27,0.00029587,2]
[311660934,1705290646657,-1813.57,0.00029587,2]
[311660935,1705290646666,-500.0,0.00029587,2]
[311660936,1705290646676,-500.0,0.00029589,2]
[311660937,1705290646685,-500.0,0.00029589,2]
[311660938,1705290646694,-500.0,0.00029589,2]
[311660939,1705290646703,-500.0,0.00029589,2]
[311660940,1705290646713,-500.0,0.00029589,2]
[311660941,1705290646722,-500.0,0.00029589,2]
[311660942,1705290646731,-657.97,0.00029589,2]
[311660943,1705290646740,-500.0,0.00029589,2]
[311660944,1705290646749,-500.0,0.00029589,2]
[311660945,1705290646759,-500.0,0.00029589,2]
[311660946,1705290646768,-255.82285444,0.00029589,2]
[311660947,1705290646777,-996.59,0.00029589,2]
[311660948,1705290646786,-686.93,0.00029589,2]
[311660949,1705290646796,-500.0,0.00029589,2]
[311660950,1705290646805,-500.0,0.00029589,2]
[311660951,1705290646813,-500.0,0.00029589,2]
[311660952,1705290646822,-737.22,0.00029589,2]
[311660953,1705290646832,-826.87,0.00029589,2]
[311660954,1705290646841,-500.0,0.00029589,2]
[311660955,1705290646851,-885.55,0.00029589,2]
[311660956,1705290646861,-1762.69,0.00029589,2]
[311660957,1705290646870,-500.0,0.00029589,2]
[311660958,1705290646879,-641.5,0.00029589,2]
[311660959,1705290646889,-1894.45,0.00029589,2]
[311660960,1705290646899,-583.54,0.00029589,2]
[311660961,1705290646908,-1062.55,0.00029589,2]
[311660962,1705290646918,-1466.46,0.00029859,2]
[311660963,1705290646927,-500.0,0.00029859,2]
[311660964,1705290646936,-500.0,0.00029859,2]
[311660965,1705290646945,-857.62,0.00029859,2]
[311660966,1705290646955,-500.0,0.00029859,2]
[311660967,1705290646963,-512.97,0.00029859,2]
[311660968,1705290646972,-8937.2,0.00029859,2]
[311660969,1705290646981,-3300.14,0.00029859,2]
[311660970,1705290646990,-15225.0,0.00029859,2]
[311660971,1705290646999,-1221.63,0.00029859,2]
[311660972,1705290647008,-845.79,0.0002986,2]
[311660973,1705290647017,-4603.41,0.0002986,2]
[311660974,1705290647026,-4682.2,0.0002986,2]
[311660975,1705290647038,-500.0,0.0002986,2]
[311660976,1705290647047,-2506.5,0.0002986,2]
[311660977,1705290647056,-600.0,0.00029861,2]
[311660978,1705290647066,-1014.27,0.00029861,2]
[311660979,1705290647076,-1813.57,0.00029861,2]
[311660980,1705290647086,-500.0,0.00029861,2]
[311660981,1705290647095,-1000.0,0.00029862,2]
[311660982,1705290647105,-3316.84809972,0.00029863,2]
[311660983,1705290647114,-155.0,0.00029863,2]
[311660984,1705290647124,-261.19258853,0.00029863,2]
[311660985,1705290647134,-500.0,0.00029863,2]
[311660986,1705290647143,-500.0,0.00029863,2]
[311660987,1705290647152,-500.0,0.00029863,2]
[311660988,1705290647162,-212.00277784,0.00029863,3]
[311660989,1705290647171,-236.02185826,0.00029863,2]
[311660990,1705290647182,-500.0,0.00029863,2]
[311660991,1705290647191,-500.0,0.00029863,2]
[311660992,1705290647201,-657.97,0.00029863,2]
[311660993,1705290647213,-500.0,0.00029863,2]
[311660994,1705290647222,-500.0,0.00029863,2]
[311660995,1705290647231,-500.0,0.00029863,2]
[311660996,1705290647242,-996.59,0.00029863,2]
[311660997,1705290647254,-686.93,0.00029863,2]
[311660998,1705290647263,-500.0,0.00029863,2]
[311660999,1705290647272,-500.0,0.00029863,2]
[311661000,1705290647282,-500.0,0.00029863,2]
[311661001,1705290647292,-737.22,0.00029863,2]
[311661002,1705290647302,-826.87,0.00029863,2]
[311661003,1705290647311,-500.0,0.00029863,2]
[311661004,1705290647322,-885.55,0.00029863,2]
[311661005,1705290647332,-1762.69,0.00029863,2]
[311661006,1705290647341,-500.0,0.00029863,2]
[311661007,1705290647350,-641.5,0.00029863,2]
[311661008,1705290647360,-1894.45,0.00029863,2]
[311661009,1705290647369,-583.54,0.00029863,2]
[311661010,1705290647378,-1062.55,0.00029863,2]
[311661011,1705290647388,-5000.0,0.00029863,2]
[311661012,1705290647397,-1000.0,0.00029867,2]
[311661013,1705290647406,-1000.0,0.00029874,2]
[311661014,1705290647416,-1000.0,0.00029875,2]
[311661015,1705290647425,-1000.0,0.00029876,2]
[311661016,1705290647435,-1000.0,0.00029892,2]
[311661017,1705290647444,-567.32461157,0.00029892,2]
[311661018,1705290647455,-1000.0,0.00029894,2]
[311661019,1705290647464,-1000.0,0.00029901,2]
[311661020,1705290647474,-754.75951984,0.00029908,2]
[311661021,1705290647484,-1000.0,0.00029916,2]
[311661022,1705290647493,-1000.0,0.00029927,2]
[311661023,1705290647503,-1000.0,0.00029948,2]
[311661024,1705290647513,-1122.18108034,0.00029951,2]
[311661025,1705290647522,-1000.0,0.00029983,2]
[311661026,1705290647533,-2823.54,0.0003,2]
[311661027,1705290647543,-5000.0,0.0003,2]
[311661028,1705290647552,-3331.6,0.0003,2]
[311661029,1705290647561,-308.058158,0.0003,14]
[311661030,1705290647570,-5039.0,0.0003,2]
[311661031,1705290647580,-1000.0,0.0003,2]
[311661032,1705290647589,-291.0,0.0003,2]
[311661033,1705290647598,-1000.0,0.00030006,2]
[311661034,1705290647607,-1000.0,0.00030021,2]
[311661035,1705290647616,-1000.0,0.00030029,2]
[311661036,1705290647625,-1000.0,0.0003003,2]
[311661037,1705290647634,-1000.0,0.0003003,2]
[311661038,1705290647644,-1000.0,0.00030035,2]
[311661039,1705290647653,-1000.0,0.00030042,2]
[311661040,1705290647662,-1000.0,0.00030043,2]
[311661041,1705290647671,-1000.0,0.0003006,2]
[311661042,1705290647681,-1000.0,0.00030063,2]
[311661043,1705290647690,-153.890699,0.00030078,7]
[311661044,1705290647699,-1000.0,0.00030083,2]
[311661045,1705290647709,-1000.0,0.00030089,2]
[311661046,1705290647718,-1500.0,0.000301,2]
[311661047,1705290647727,-150.0,0.000301,2]
[311661048,1705290647736,-538.837793,0.000301,3]
[311661049,1705290647746,-1000.0,0.00030104,2]
[311661050,1705290647755,-1000.0,0.00030115,2]
[311661051,1705290647764,-1000.0,0.00030118,2]
[311661052,1705290647773,-1000.0,0.00030122,2]
[311661053,1705290647782,-1000.0,0.00030122,2]
[311661054,1705290647791,-1000.0,0.00030131,2]
[311661055,1705290647801,-1326.406855,0.00030133,2]
[311661056,1705290647810,-1326.406855,0.00030133,2]
[311661057,1705290647819,-1466.46,0.00030133,2]
[311661058,1705290647829,-500.0,0.00030133,2]
[311661059,1705290647839,-500.0,0.00030133,2]
[311661060,1705290647848,-857.62,0.00030133,2]
[311661061,1705290647858,-500.0,0.00030133,2]
[311661062,1705290647867,-512.97,0.00030133,2]
[311661063,1705290647876,-8937.2,0.00030133,2]
[311661064,1705290647886,-3300.14,0.00030133,2]
[311661065,1705290647895,-15225.0,0.00030133,2]
[311661066,1705290647905,-1221.63,0.00030133,2]
[311661067,1705290647914,-845.79,0.00030134,2]
[311661068,1705290647923,-4603.41,0.00030134,2]
[311661069,1705290647932,-4682.2,0.00030134,2]
[311661070,1705290647941,-500.0,0.00030134,2]
[311661071,1705290647950,-2506.5,0.00030134,2]
[311661072,1705290647960,-483.54562149,0.00030135,4]
[311661073,1705290647969,-600.0,0.00030135,2]
[311661074,1705290647978,-1014.27,0.00030135,2]
[311661075,1705290647987,-1813.57,0.00030135,2]
[311661076,1705290647996,-500.0,0.00030135,2]
[311661077,1705290648005,-217.861042,0.00030136,2]
[311661078,1705290648014,-1830.1640816,0.00030136,2]
[311661079,1705290648023,-282.83454941,0.00030136,3]
[311661080,1705290648033,-798.473864,0.00030136,4]
[311661081,1705290648042,-155.0,0.00030136,2]
[311661082,1705290648051,-1000.0,0.00030136,2]
[311661083,1705290648061,-500.0,0.00030136,2]
[311661084,1705290648070,-500.0,0.00030136,2]
[311661085,1705290648079,-500.0,0.00030136,2]
[311661086,1705290648088,-500.0,0.00030136,2]
[311661087,1705290648097,-150.0,0.00030136,2]
[311661088,1705290648106,-150.0,0.00030136,2]
[311661089,1705290648115,-150.87135062,0.00030136,2]
[311661090,1705290648124,-500.0,0.00030136,2]
[311661091,1705290648133,-657.97,0.00030136,2]
[311661092,1705290648142,-500.0,0.00030136,2]
[311661093,1705290648151,-500.0,0.00030136,2]
[311661094,1705290648160,-500.0,0.00030136,2]
[311661095,1705290648169,-996.59,0.00030136,2]
[311661096,1705290648178,-686.93,0.00030136,2]
[311661097,1705290648187,-254.06710036,0.00030136,2]
[311661098,1705290648196,-500.0,0.00030136,2]
[311661099,1705290648205,-500.0,0.00030136,2]
[311661100,1705290648214,-737.22,0.00030136,2]
[311661101,1705290648223,-826.87,0.00030136,2]
[311661102,1705290648232,-500.0,0.00030136,2]
[311661103,1705290648241,-885.55,0.00030136,2]
[311661104,1705290648251,-1762.69,0.00030136,2]
[311661105,1705290648260,-500.0,0.00030136,2]
[311661106,1705290648269,-641.5,0.00030136,2]
[311661107,1705290648278,-1894.45,0.00030136,2]
[311661108,1705290648287,-583.54,0.00030136,2]
[311661109,1705290648296,-1062.55,0.00030136,2]
[311661110,1705290648305,-153.0,0.00030137,2]
[311661111,1705290648314,-153.0,0.00030137,2]
[311661112,1705290648323,-153.0,0.00030137,2]
[311661113,1705290648332,-153.0,0.00030137,2]
[311661114,1705290648341,-153.0,0.00030137,2]
[311661115,1705290648350,-41798.8746468,0.00030137,2]
[311661116,1705290648359,-155.0,0.00030137,2]
[311661117,1705290648368,-620.62430007,0.00030281,2]
[311661118,1705290648377,-153.890699,0.00030281,7]
[311661119,1705290648386,-1466.46,0.00030407,2]
[311661120,1705290648465,-500.0,0.00030407,2]
[311661121,1705290648474,-500.0,0.00030407,2]
[311661122,1705290648483,-857.62,0.00030407,2]
[311661123,1705290648492,-500.0,0.00030407,2]
[311661124,1705290648501,-512.97,0.00030407,2]
[311661125,1705290648511,-8937.2,0.00030407,2]
[311661126,1705290648520,-3300.14,0.00030407,2]
[311661127,1705290648529,-15225.0,0.00030407,2]
[311661128,1705290648538,-1221.63,0.00030407,2]
[311661129,1705290648547,-845.79,0.00030408,2]
[311661130,1705290648556,-4603.41,0.00030408,2]
[311661131,1705290648565,-4682.2,0.00030408,2]
[311661132,1705290648574,-500.0,0.00030408,2]
[311661133,1705290648584,-2506.5,0.00030408,2]
[311661134,1705290648594,-600.0,0.00030409,2]
[311661135,1705290648603,-1014.27,0.00030409,2]
[311661136,1705290648612,-1813.57,0.00030409,2]
[311661137,1705290648622,-500.0,0.00030409,2]
[311661138,1705290648631,-500.0,0.0003041,2]
[311661139,1705290648640,-500.0,0.0003041,2]
[311661140,1705290648649,-500.0,0.0003041,2]
[311661141,1705290648659,-500.0,0.0003041,2]
[311661142,1705290648669,-500.0,0.0003041,2]
[311661143,1705290648678,-657.97,0.0003041,2]
[311661144,1705290648689,-500.0,0.0003041,2]
[311661145,1705290648698,-500.0,0.0003041,2]
[311661146,1705290648708,-500.0,0.0003041,2]
[311661147,1705290648717,-996.59,0.0003041,2]
[311661148,1705290648726,-686.93,0.0003041,2]
[311661149,1705290648736,-284.29067204,0.0003041,2]
[311661150,1705290648745,-500.0,0.0003041,2]
[311661151,1705290648756,-737.22,0.0003041,2]
[311661152,1705290648766,-826.87,0.0003041,2]
[311661153,1705290648775,-500.0,0.0003041,2]
[311661154,1705290648785,-885.55,0.0003041,2]
[311661155,1705290648794,-1762.69,0.0003041,2]
[311661156,1705290648804,-500.0,0.0003041,2]
[311661157,1705290648814,-641.5,0.0003041,2]
[311661158,1705290648823,-1894.45,0.0003041,2]
[311661159,1705290648833,-583.54,0.0003041,2]
[311661160,1705290648842,-1062.55,0.0003041,2]
[311661161,1705290648851,-151.75924971,0.00030588,2]
[311661162,1705290648861,-200.0,0.00030626,15]
[311661163,1705290648871,-150.5,0.0003066,30]
[311661164,1705290648880,-150.5,0.0003067,30]
[311661165,1705290648889,-150.5,0.0003068,30]
[311661166,1705290648898,-1466.46,0.00030681,2]
[311661167,1705290648908,-500.0,0.00030681,2]
[311661168,1705290648917,-500.0,0.00030681,2]
[311661169,1705290648927,-857.62,0.00030681,2]
[311661170,1705290648938,-474.46409702,0.00030681,2]
[311661171,1705290648947,-512.97,0.00030681,2]
[311661172,1705290648957,-8937.2,0.00030681,2]
[311661173,1705290648966,-3300.14,0.00030681,2]
[311661174,1705290648975,-15225.0,0.00030681,2]
[311661175,1705290648984,-1221.63,0.00030681,2]
[311661176,1705290648994,-845.79,0.00030682,2]
[311661177,1705290649003,-4603.41,0.00030682,2]
[311661178,1705290649012,-4682.2,0.00030682,2]
[311661179,1705290649021,-500.0,0.00030682,2]
[311661180,1705290649031,-2506.5,0.00030682,2]
[311661181,1705290649040,-600.0,0.00030683,2]
[311661182,1705290649050,-1014.27,0.00030683,2]
[311661183,1705290649059,-1813.57,0.00030683,2]
[311661184,1705290649068,-500.0,0.00030683,2]
[311661185,1705290649077,-1326.406855,0.00030683,2]
[311661186,1705290649087,-1326.406855,0.00030683,2]
[311661187,1705290649096,-500.0,0.00030684,2]
[311661188,1705290649105,-500.0,0.00030684,2]
[311661189,1705290649114,-500.0,0.00030684,2]
[311661190,1705290649123,-500.0,0.00030684,2]
[311661191,1705290649133,-500.0,0.00030684,2]
[311661192,1705290649142,-657.97,0.00030684,2]
[311661193,1705290649151,-500.0,0.00030684,2]
[311661194,1705290649161,-487.4537377,0.00030684,2]
[311661195,1705290649170,-500.0,0.00030684,2]
[311661196,1705290649179,-996.59,0.00030684,2]
[311661197,1705290649188,-686.93,0.00030684,2]
[311661198,1705290649198,-500.0,0.00030684,2]
[311661199,1705290649208,-737.22,0.00030684,2]
[311661200,1705290649222,-826.87,0.00030684,2]
[311661201,1705290649231,-500.0,0.00030684,2]
[311661202,1705290649240,-885.55,0.00030684,2]
[311661203,1705290649249,-1762.69,0.00030684,2]
[311661204,1705290649258,-500.0,0.00030684,2]
[311661205,1705290649267,-641.5,0.00030684,2]
[311661206,1705290649277,-1894.45,0.00030684,2]
[311661207,1705290649285,-583.54,0.00030684,2]
[311661208,1705290649295,-1062.55,0.00030684,2]
[311661209,1705290649304,-321.551279,0.00030684,2]
[311661210,1705290649314,-321.551279,0.00030684,2]
[311661211,1705290649323,-154.9562086,0.00030774,7]
[311661212,1705290649333,-153.890699,0.00030928,7]
[311661213,1705290649342,-1466.46,0.00030955,2]
[311661214,1705290649351,-500.0,0.00030955,2]
[311661215,1705290649360,-500.0,0.00030955,2]
[311661216,1705290649369,-857.62,0.00030955,2]
[311661217,1705290649381,-512.97,0.00030955,2]
[311661218,1705290649390,-8937.2,0.00030955,2]
[311661219,1705290649399,-3300.14,0.00030955,2]
[311661220,1705290649408,-15225.0,0.00030955,2]
[311661221,1705290649417,-1221.63,0.00030955,2]
[311661222,1705290649427,-845.79,0.00030956,2]
[311661223,1705290649435,-4603.41,0.00030956,2]
[311661224,1705290649444,-4682.2,0.00030956,2]
[311661225,1705290649453,-500.0,0.00030956,2]
[311661226,1705290649462,-2506.5,0.00030956,2]
[311661227,1705290649471,-600.0,0.00030957,2]
[311661228,1705290649480,-1014.27,0.00030957,2]
[311661229,1705290649489,-1813.57,0.00030957,2]
[311661230,1705290649498,-500.0,0.00030957,2]
[311661231,1705290649507,-500.0,0.00030958,2]
[311661232,1705290649516,-500.0,0.00030958,2]
[311661233,1705290649525,-500.0,0.00030958,2]
[311661234,1705290649533,-500.0,0.00030958,2]
[311661235,1705290649543,-500.0,0.00030958,2]
[311661236,1705290649552,-657.97,0.00030958,2]
[311661237,1705290649561,-500.0,0.00030958,2]
[311661238,1705290649570,-500.0,0.00030958,2]
[311661239,1705290649578,-996.59,0.00030958,2]
[311661240,1705290649588,-686.93,0.00030958,2]
[311661241,1705290649597,-500.0,0.00030958,2]
[311661242,1705290649606,-737.22,0.00030958,2]
[311661243,1705290649615,-826.87,0.00030958,2]
[311661244,1705290649623,-500.0,0.00030958,2]
[311661245,1705290649632,-885.55,0.00030958,2]
[311661246,1705290649641,-1762.69,0.00030958,2]
[311661247,1705290649651,-500.0,0.00030958,2]
[311661248,1705290649660,-641.5,0.00030958,2]
[311661249,1705290649669,-1894.45,0.00030958,2]
[311661250,1705290649678,-583.54,0.00030958,2]
[311661251,1705290649687,-1062.55,0.00030958,2]
[311661252,1705290649696,-63689.01063662,0.00030985,7]
[311661253,1705290649705,-500.0,0.00030986,2]
[311661254,1705290649715,-500.0,0.00030986,2]
[311661255,1705290649724,-500.0,0.00030986,2]
[311661256,1705290649733,-965.23762414,0.00030986,2]
[311661257,1705290649743,-367.77205751,0.00030986,2]
[311661258,1705290649752,-528.28687008,0.00030986,2]
[311661259,1705290649761,-500.0,0.00030986,2]
[311661260,1705290649770,-500.0,0.00030986,2]
[311661261,1705290649779,-500.0,0.00030986,2]
[311661262,1705290649788,-500.0,0.00030986,2]
[311661263,1705290649797,-965.23762414,0.00030986,2]
[311661264,1705290649807,-532.62062299,0.00030986,2]
[311661265,1705290649816,-500.0,0.00030986,2]